[Event "FIDE U16 Olympiad_boards_81-124"]
[Site "Eindhoven, Netherlands"]
[Date "2023.08.13"]
[Round "1.6"]
[White "La Fleur, Juninho"]
[Black "Magkalakis, Stefanos"]
[Result "0-1"]
[TimeControl "45min+10sec"]
[WhiteElo "1328"]
[BlackElo "2091"]

1. e4 {[%clk 00:45:16]} {[%emt 00:00:04]} e5 {[%clk 00:45:11]} {[%emt
00:00:08]} 2. Nf3 {[%clk 00:45:20]} {[%emt 00:00:06]} Nc6 {[%clk 00:45:12]}
{[%emt 00:00:10]} 3. Bc4 {[%clk 00:45:22]} {[%emt 00:00:08]} Nf6 {[%clk
00:45:02]} {[%emt 00:00:20]} 4. d3 {[%clk 00:45:23]} {[%emt 00:00:09]} h6
{[%clk 00:44:47]} {[%emt 00:00:25]} 5. O-O {[%clk 00:44:33]} {[%emt 00:00:59]}
d6 {[%clk 00:44:38]} {[%emt 00:00:19]} 6. c3 {[%clk 00:41:56]} {[%emt
00:02:48]} g6 {[%clk 00:42:50]} {[%emt 00:01:58]} 7. Re1 {[%clk 00:41:00]}
{[%emt 00:01:06]} Bg7 {[%clk 00:42:34]} {[%emt 00:00:26]} 8. Nbd2 {[%clk
00:39:18]} {[%emt 00:01:52]} O-O {[%clk 00:41:18]} {[%emt 00:01:25]} 9. Nf1
{[%clk 00:38:34]} {[%emt 00:00:55]} Na5 {[%clk 00:40:32]} {[%emt 00:00:56]} 10.
Bb5 {[%emt 00:02:05]} a6 {[%clk 00:39:27]} {[%emt 00:01:12]} 11. Ba4 {[%clk
00:36:41]} {[%emt 00:00:10]} b5 {[%clk 00:38:28]} {[%emt 00:01:10]} 12. Bc2
{[%clk 00:36:25]} {[%emt 00:00:26]} c5 {[%clk 00:37:33]} {[%emt 00:01:04]} 13.
Bd2 {[%clk 00:35:17]} {[%emt 00:01:18]} Nc6 {[%clk 00:27:53]} {[%emt 00:09:50]}
14. h3 {[%clk 00:33:27]} {[%emt 00:02:02]} d5 {[%clk 00:26:06]} {[%emt
00:01:55]} 15. Qc1 {[%clk 00:25:33]} {[%emt 00:08:04]} Kh7 {[%clk 00:26:05]}
{[%emt 00:00:12]} 16. N3h2 {[%clk 00:22:54]} {[%emt 00:02:49]} Be6 {[%clk
00:21:08]} {[%emt 00:05:07]} 17. Ng3 {[%clk 00:18:40]} {[%emt 00:04:25]} Rc8
{[%clk 00:16:24]} {[%emt 00:04:53]} 18. f4 {[%clk 00:17:17]} {[%emt 00:01:33]}
exf4 {[%clk 00:15:02]} {[%emt 00:01:32]} 19. Bxf4 {[%clk 00:17:19]} {[%emt
00:00:08]} dxe4 {[%clk 00:13:11]} {[%emt 00:02:01]} 20. dxe4 {[%clk 00:15:44]}
{[%emt 00:01:45]} b4 {[%clk 00:05:26]} {[%emt 00:07:55]} 21. Kh1 {[%clk
00:12:22]} {[%emt 00:03:32]} Qa5 {[%clk 00:04:21]} {[%emt 00:01:14]} 22. Bd2
{[%clk 00:06:49]} {[%emt 00:05:44]} Ne5 {[%clk 00:04:12]} {[%emt 00:00:19]} 23.
Bf4 {[%clk 00:05:28]} {[%emt 00:01:31]} Nfd7 {[%clk 00:03:34]} {[%emt
00:00:48]} 24. cxb4 {[%clk 00:03:40]} {[%emt 00:01:58]} cxb4 {[%clk 00:03:38]}
{[%emt 00:00:06]} 25. Qd1 {[%clk 00:03:28]} {[%emt 00:00:21]} Rfd8 {[%clk
00:03:26]} {[%emt 00:00:23]} 26. Re2 {[%clk 00:01:55]} {[%emt 00:01:43]} Nc5
{[%clk 00:02:22]} {[%emt 00:01:14]} 27. Rd2 {[%clk 00:01:00]} {[%emt 00:01:03]}
Nc4 {[%clk 00:02:14]} {[%emt 00:00:19]} 28. Rxd8 {[%clk 00:00:48]} {[%emt
00:00:22]} Rxd8 {[%clk 00:02:22]} {[%emt 00:00:02]} 29. Qf1 {[%clk 00:00:28]}
{[%emt 00:00:31]} Bxb2 {[%clk 00:01:48]} {[%emt 00:00:44]} 30. Re1 {[%clk
00:00:31]} {[%emt 00:00:06]} Bc3 {[%clk 00:01:19]} {[%emt 00:00:39]} 31. e5
{[%clk 00:00:13]} {[%emt 00:00:29]} Bxe1 {[%clk 00:01:10]} {[%emt 00:00:18]} 32.
Nh5 {[%clk 00:00:12]} {[%emt 00:00:11]} Qxa2 {[%clk 00:00:41]} {[%emt
00:00:40]} 33. Bxh6 {[%emt 00:00:49]} 0-1

[Event "FIDE U16 Olympiad_boards_81-124"]
[Site "Eindhoven, Netherlands"]
[Date "2023.08.13"]
[Round "1.7"]
[White "Gkavardinas, Antonios"]
[Black "Samuel Bisnath, Kael"]
[Result "1-0"]
[TimeControl "45min+10sec"]
[WhiteElo "1978"]
[BlackElo "1432"]

1. e4 {[%clk 00:45:18]} {[%emt 00:00:02]} e5 {[%clk 00:45:07]} {[%emt
00:00:13]} 2. Nf3 {[%clk 00:45:17]} {[%emt 00:00:11]} Nc6 {[%clk 00:45:15]}
{[%emt 00:00:02]} 3. Bc4 {[%clk 00:45:16]} {[%emt 00:00:11]} Bc5 {[%clk
00:45:24]} {[%emt 00:00:02]} 4. d3 {[%clk 00:45:12]} {[%emt 00:00:14]} Nf6
{[%clk 00:45:08]} {[%emt 00:00:25]} 5. O-O {[%clk 00:45:06]} {[%emt 00:00:16]}
d6 {[%clk 00:44:29]} {[%emt 00:00:49]} 6. c3 {[%clk 00:45:07]} {[%emt
00:00:09]} O-O {[%clk 00:44:32]} {[%emt 00:00:07]} 7. Nbd2 {[%clk 00:44:25]}
{[%emt 00:00:53]} Be6 {[%clk 00:42:20]} {[%emt 00:02:21]} 8. Bxe6 {[%clk
00:42:51]} {[%emt 00:01:44]} fxe6 {[%clk 00:42:18]} {[%emt 00:00:11]} 9. b4
{[%clk 00:42:39]} {[%emt 00:00:23]} Bb6 {[%clk 00:42:09]} {[%emt 00:00:19]} 10.
a4 {[%clk 00:41:11]} {[%emt 00:01:39]} a5 {[%clk 00:36:00]} {[%emt 00:06:19]}
11. b5 {[%clk 00:40:45]} {[%emt 00:00:36]} Ne7 {[%clk 00:35:43]} {[%emt
00:00:27]} 12. Nc4 {[%clk 00:37:35]} {[%emt 00:03:20]} Ng6 {[%clk 00:31:03]}
{[%emt 00:04:49]} 13. h3 {[%clk 00:33:34]} {[%emt 00:04:12]} c5 {[%clk
00:27:23]} {[%emt 00:03:50]} 14. Re1 {[%clk 00:30:47]} {[%emt 00:02:56]} Bc7
{[%clk 00:25:26]} {[%emt 00:02:06]} 15. Ra2 {[%clk 00:23:58]} {[%emt 00:07:00]}
b6 {[%clk 00:24:00]} {[%emt 00:01:36]} 16. Rd2 {[%clk 00:20:39]} {[%emt
00:03:29]} Qb8 {[%clk 00:16:11]} {[%emt 00:07:59]} 17. Ng5 {[%clk 00:17:55]}
{[%emt 00:02:55]} Re8 {[%clk 00:15:33]} {[%emt 00:00:47]} 18. d4 {[%clk
00:17:17]} {[%emt 00:00:48]} exd4 {[%clk 00:06:46]} {[%emt 00:08:57]} 19. cxd4
{[%clk 00:17:16]} {[%emt 00:00:12]} cxd4 {[%clk 00:04:59]} {[%emt 00:01:57]} 20.
Rxd4 {[%clk 00:16:21]} {[%emt 00:01:05]} d5 {[%clk 00:05:04]} {[%emt 00:00:05]}
21. exd5 {[%clk 00:14:19]} {[%emt 00:02:11]} exd5 {[%clk 00:05:11]} {[%emt
00:00:03]} 22. Ne3 {[%clk 00:13:37]} {[%emt 00:00:53]} Be5 {[%clk 00:04:08]}
{[%emt 00:01:12]} 23. Rxd5 {[%clk 00:13:28]} {[%emt 00:00:19]} h6 {[%clk
00:01:59]} {[%emt 00:02:19]} 24. Qb3 {[%clk 00:04:49]} {[%emt 00:08:49]} Nxd5
{[%clk 00:00:38]} {[%emt 00:01:32]} 25. Qxd5+ {[%clk 00:04:45]} {[%emt
00:00:14]} Kh8 {[%clk 00:00:47]} 26. Nf7+ {[%clk 00:03:31]} {[%emt 00:01:24]}
Kh7 {[%clk 00:00:56]} {[%emt 00:00:02]} 27. Rd1 {[%clk 00:03:16]} {[%emt
00:00:25]} Bf6 {[%clk 00:00:40]} {[%emt 00:00:25]} 28. Ng4 {[%clk 00:03:01]}
{[%emt 00:00:26]} Be7 {[%clk 00:00:27]} {[%emt 00:00:23]} 29. Bb2 {[%clk
00:01:14]} {[%emt 00:01:56]} Bc5 {[%clk 00:00:17]} {[%emt 00:00:21]} 30. Ngxh6
{[%clk 00:00:25]} {[%emt 00:00:58]} gxh6 {[%clk 00:00:14]} {[%emt 00:00:13]} 31.
Ng5+ {[%clk 00:00:30]} {[%emt 00:00:06]} hxg5 {[%clk 00:00:17]} {[%emt
00:00:06]} 32. Qf7+ {[%clk 00:00:35]} {[%emt 00:00:05]} Kh6 {[%clk 00:00:23]}
{[%emt 00:00:04]} 33. Qg7+ {[%clk 00:00:38]} {[%emt 00:00:08]} Kh5 {[%clk
00:00:26]} {[%emt 00:00:06]} 34. Qh7# {[%clk 00:00:46]} {[%emt 00:00:02]} 1-0

[Event "FIDE U16 Olympiad_boards_81-124"]
[Site "Eindhoven, Netherlands"]
[Date "2023.08.13"]
[Round "1.8"]
[White "Ramnarine Singh, Aradhana"]
[Black "Gkoutzouki, Aikaterini Argyro"]
[Result "0-1"]
[TimeControl "45min+10sec"]
[WhiteElo "1210"]
[BlackElo "1548"]

1. e4 {[%clk 00:45:17]} {[%emt 00:00:02]} c5 {[%clk 00:45:13]} {[%emt
00:00:08]} 2. Nf3 {[%clk 00:45:25]} {[%emt 00:00:03]} Nc6 {[%clk 00:45:12]}
{[%emt 00:00:11]} 3. d4 {[%clk 00:45:30]} {[%emt 00:00:04]} cxd4 {[%clk
00:45:13]} {[%emt 00:00:09]} 4. Nxd4 {[%clk 00:45:37]} e5 {[%clk 00:45:11]}
{[%emt 00:00:16]} 5. Nf3 {[%clk 00:45:28]} Nf6 {[%clk 00:44:07]} {[%emt
00:01:32]} 6. Nc3 {[%clk 00:43:51]} Bb4 {[%clk 00:43:03]} {[%emt 00:03:01]} 7.
Bd3 {[%clk 00:41:36]} d6 {[%clk 00:43:03]} 8. h3 {[%clk 00:41:36]} Bxc3+ {[%clk
00:37:01]} {[%emt 00:11:24]} 9. bxc3 {[%clk 00:39:11]} h6 {[%clk 00:37:01]} 10.
O-O {[%clk 00:39:11]} Be6 {[%clk 00:37:01]} 11. Re1 {[%clk 00:39:11]} Qc7
{[%clk 00:37:01]} 12. Qe2 {[%clk 00:39:11]} O-O {[%clk 00:37:01]} 13. Bd2
{[%clk 00:39:11]} Ne7 {[%clk 00:37:01]} 14. Nh4 {[%clk 00:39:11]} Ng6 {[%clk
00:37:01]} 15. Nxg6 {[%clk 00:39:11]} fxg6 {[%clk 00:37:01]} 16. Rf1 {[%clk
00:39:11]} Nh5 {[%clk 00:37:01]} 17. Qe1 {[%clk 00:39:11]} Qe7 {[%clk
00:37:01]} 18. Kh2 {[%clk 00:39:11]} g5 {[%clk 00:37:01]} 19. Qe2 {[%clk
00:39:11]} Nf4 {[%clk 00:37:01]} 20. Bxf4 {[%clk 00:39:11]} gxf4 {[%clk
00:37:01]} 21. f3 {[%clk 00:39:11]} Rac8 {[%clk 00:37:01]} 22. c4 {[%clk
00:39:11]} Qf7 {[%clk 00:37:01]} 23. Rg1 {[%clk 00:39:11]} g5 {[%clk 00:37:01]}
24. Rab1 {[%clk 00:39:11]} Rc7 {[%clk 00:37:01]} 25. a3 {[%clk 00:39:11]} b6
{[%clk 00:37:01]} 26. Rbd1 {[%clk 00:39:11]} Kh8 {[%clk 00:37:01]} 27. Qe1
{[%clk 00:39:11]} Qh5 {[%clk 00:37:01]} 28. Be2 {[%clk 00:39:11]} Rd8 {[%clk
00:37:01]} 29. Rh1 {[%clk 00:39:11]} Qf7 {[%clk 00:37:01]} 30. Kg1 {[%clk
00:39:11]} h5 {[%clk 00:37:01]} 31. Qf2 {[%clk 00:39:11]} h4 {[%clk 00:37:01]}
32. Qe1 {[%clk 00:39:11]} Bxc4 {[%clk 00:37:01]} 33. Bxc4 {[%clk 00:39:11]}
Qxc4 {[%clk 00:37:01]} 34. Rc1 {[%clk 00:39:11]} Qc5+ {[%clk 00:37:01]} 35. Qf2
{[%clk 00:39:11]} Qxa3 {[%clk 00:37:01]} 36. Kh2 {[%clk 00:39:11]} Qc5 {[%clk
00:37:01]} 37. Qe2 {[%clk 00:39:11]} a5 {[%clk 00:37:01]} 38. Rhd1 {[%clk
00:39:11]} Qc4 {[%clk 00:37:01]} 39. Qf2 {[%clk 00:39:11]} Rc5 {[%clk
00:37:01]} 40. Rb1 {[%clk 00:39:11]} b5 {[%clk 00:37:01]} 41. Rdc1 {[%clk
00:39:11]} b4 {[%clk 00:13:54]} {[%emt 01:14:27]} 0-1

[Event "FIDE U16 Olympiad_boards_81-124"]
[Site "Eindhoven, Netherlands"]
[Date "2023.08.13"]
[Round "1.9"]
[White "Huang, Zi-Chen"]
[Black "Perossa, Nicolas"]
[Result "0-1"]
[TimeControl "45min+10sec"]
[WhiteElo "1492"]
[BlackElo "2062"]

1. e4 {[%clk 00:45:15]} {[%emt 00:00:04]} e6 {[%clk 00:44:33]} {[%emt
00:00:48]} 2. d4 {[%clk 00:45:20]} {[%emt 00:00:06]} d5 {[%clk 00:44:41]}
{[%emt 00:00:01]} 3. Nc3 {[%clk 00:45:18]} {[%emt 00:00:13]} Bb4 {[%clk
00:44:48]} {[%emt 00:00:03]} 4. e5 {[%clk 00:45:15]} {[%emt 00:00:12]} c5
{[%clk 00:44:55]} {[%emt 00:00:03]} 5. a3 {[%clk 00:45:17]} {[%emt 00:00:07]}
Bxc3+ {[%clk 00:45:01]} {[%emt 00:00:05]} 6. bxc3 {[%clk 00:45:18]} {[%emt
00:00:09]} Ne7 {[%clk 00:45:08]} {[%emt 00:00:03]} 7. Qg4 {[%clk 00:44:42]}
{[%emt 00:00:45]} O-O {[%clk 00:45:13]} {[%emt 00:00:04]} 8. Bd3 {[%clk
00:43:56]} {[%emt 00:00:58]} Qc7 {[%clk 00:31:41]} {[%emt 00:13:42]} 9. Bg5
{[%clk 00:30:11]} {[%emt 00:13:54]} cxd4 {[%clk 00:28:04]} {[%emt 00:03:48]} 10.
Ne2 {[%clk 00:28:40]} {[%emt 00:01:40]} Ng6 {[%clk 00:25:33]} {[%emt 00:02:41]}
11. cxd4 {[%clk 00:26:48]} {[%emt 00:02:03]} Qa5+ {[%clk 00:15:19]} {[%emt
00:10:24]} 12. Bd2 {[%clk 00:21:56]} {[%emt 00:05:02]} Qa4 {[%clk 00:15:28]}
{[%emt 00:00:01]} 13. Qh5 {[%clk 00:13:53]} {[%emt 00:08:13]} Nc6 {[%clk
00:13:36]} {[%emt 00:02:02]} 14. c3 {[%clk 00:12:13]} {[%emt 00:01:49]} b6
{[%clk 00:13:05]} {[%emt 00:00:42]} 15. O-O {[%clk 00:09:28]} {[%emt 00:02:54]}
Ba6 {[%clk 00:12:51]} {[%emt 00:00:25]} 16. Bxa6 {[%clk 00:08:12]} {[%emt
00:01:26]} Qxa6 {[%clk 00:13:00]} {[%emt 00:00:02]} 17. Ng3 {[%clk 00:06:01]}
{[%emt 00:02:20]} Nce7 {[%clk 00:02:19]} {[%emt 00:10:51]} 18. Qf3 {[%clk
00:02:06]} {[%emt 00:04:04]} Qa4 {[%clk 00:00:53]} {[%emt 00:01:36]} 19. Qe2
{[%clk 00:01:11]} {[%emt 00:01:06]} Rfe8 {[%clk 00:00:25]} {[%emt 00:00:38]} 20.
f4 {[%clk 00:00:32]} {[%emt 00:00:49]} Rac8 {[%clk 00:00:17]} {[%emt 00:00:19]}
21. f5 {[%clk 00:00:12]} {[%emt 00:00:29]} Nxf5 {[%clk 00:00:24]} {[%emt
00:00:03]} 22. Nxf5 {[%clk 00:00:13]} {[%emt 00:00:09]} exf5 {[%clk 00:00:33]}
23. Rxf5 {[%clk 00:00:14]} {[%emt 00:00:09]} Qd7 {[%clk 00:00:13]} {[%emt
00:00:29]} 24. Qf2 {[%clk 00:00:12]} {[%emt 00:00:13]} Nf8 {[%clk 00:00:12]}
{[%emt 00:00:11]} 25. Rf1 {[%clk 00:00:13]} {[%emt 00:00:08]} Rc7 {[%clk
00:00:22]} 26. g4 {[%clk 00:00:12]} {[%emt 00:00:11]} Re6 {[%clk 00:00:17]}
{[%emt 00:00:15]} 27. h3 {[%clk 00:00:17]} {[%emt 00:00:05]} Rg6 {[%clk
00:00:16]} {[%emt 00:00:11]} 28. Kh2 {[%clk 00:00:15]} {[%emt 00:00:12]} Ne6
{[%clk 00:00:21]} {[%emt 00:00:05]} 29. Rg1 {[%clk 00:00:16]} {[%emt 00:00:10]}
a5 {[%clk 00:00:13]} {[%emt 00:00:18]} 30. h4 {[%clk 00:00:16]} {[%emt
00:00:09]} h6 {[%clk 00:00:13]} {[%emt 00:00:10]} 31. h5 {[%clk 00:00:19]}
{[%emt 00:00:07]} Rg5 {[%clk 00:00:23]} 32. Bxg5 {[%clk 00:00:24]} {[%emt
00:00:04]} Nxg5 {[%clk 00:00:32]} {[%emt 00:00:01]} 33. Rc1 {[%clk 00:00:14]}
{[%emt 00:00:21]} Ne4 {[%clk 00:00:39]} {[%emt 00:00:03]} 34. Qf3 {[%clk
00:00:12]} {[%emt 00:00:11]} b5 {[%clk 00:00:36]} {[%emt 00:00:13]} 35. Rf4
{[%clk 00:00:12]} {[%emt 00:00:10]} Ng5 {[%clk 00:00:41]} {[%emt 00:00:05]} 36.
Qf1 {[%clk 00:00:12]} {[%emt 00:00:09]} Ne6 {[%clk 00:00:48]} {[%emt 00:00:03]}
37. Rf5 {[%clk 00:00:17]} {[%emt 00:00:06]} Rc4 {[%clk 00:00:40]} {[%emt
00:00:18]} 38. Qe1 {[%clk 00:00:12]} {[%emt 00:00:15]} Qc7 {[%clk 00:00:41]}
{[%emt 00:00:08]} 39. Rf1 {[%clk 00:00:14]} {[%emt 00:00:09]} Qc8 {[%clk
00:00:40]} {[%emt 00:00:11]} 40. Kg3 {[%clk 00:00:13]} {[%emt 00:00:11]} Ng5
{[%clk 00:00:47]} {[%emt 00:00:03]} 41. Rf4 {[%clk 00:00:11]} {[%emt 00:00:12]}
b4 {[%clk 00:00:48]} {[%emt 00:00:10]} 42. axb4 {[%clk 00:00:15]} {[%emt
00:00:06]} axb4 {[%clk 00:00:57]} {[%emt 00:00:01]} 43. Qf1 {[%clk 00:00:13]}
{[%emt 00:00:11]} b3 {[%clk 00:00:36]} {[%emt 00:00:32]} 44. Rb1 {[%clk
00:00:12]} {[%emt 00:00:11]} Rxc3+ {[%clk 00:00:44]} 45. Kg2 {[%clk 00:00:18]}
{[%emt 00:00:04]} Ne4 {[%clk 00:00:26]} {[%emt 00:00:28]} 46. Rf3 {[%clk
00:00:13]} {[%emt 00:00:15]} Qxg4+ {[%clk 00:00:34]} {[%emt 00:00:02]} 0-1

[Event "FIDE U16 Olympiad_boards_81-124"]
[Site "Eindhoven, Netherlands"]
[Date "2023.08.13"]
[Round "1.10"]
[White "Candian, Lorenzo"]
[Black "Lai, Hong-Yi"]
[Result "1-0"]
[TimeControl "45min+10sec"]
[WhiteElo "1922"]
[BlackElo "1469"]

1. e4 {[%clk 00:44:54]} {[%emt 00:00:26]} e6 {[%clk 00:45:16]} {[%emt
00:00:04]} 2. d4 {[%clk 00:44:59]} {[%emt 00:00:05]} d5 {[%clk 00:45:21]}
{[%emt 00:00:05]} 3. Nd2 {[%clk 00:45:05]} {[%emt 00:00:04]} c5 {[%clk
00:45:27]} {[%emt 00:00:04]} 4. Ngf3 {[%clk 00:45:11]} {[%emt 00:00:04]} cxd4
{[%clk 00:45:27]} {[%emt 00:00:11]} 5. Nxd4 {[%clk 00:45:18]} {[%emt 00:00:02]}
Nc6 {[%clk 00:45:36]} {[%emt 00:00:02]} 6. Nxc6 {[%clk 00:44:17]} {[%emt
00:01:10]} bxc6 {[%clk 00:45:44]} {[%emt 00:00:02]} 7. Bd3 {[%clk 00:44:26]}
{[%emt 00:00:02]} Nf6 {[%clk 00:45:38]} {[%emt 00:00:15]} 8. O-O {[%clk
00:43:58]} {[%emt 00:00:38]} Bd6 {[%clk 00:45:41]} {[%emt 00:00:06]} 9. Qe2
{[%clk 00:41:52]} {[%emt 00:02:17]} Qc7 {[%clk 00:45:43]} {[%emt 00:00:08]} 10.
h3 {[%clk 00:40:51]} {[%emt 00:01:11]} O-O {[%clk 00:45:35]} {[%emt 00:00:17]}
11. Re1 {[%clk 00:39:29]} {[%emt 00:01:33]} e5 {[%clk 00:40:18]} {[%emt
00:05:26]} 12. a3 {[%clk 00:34:12]} {[%emt 00:05:28]} a5 {[%clk 00:37:28]}
{[%emt 00:03:00]} 13. c4 {[%clk 00:33:37]} {[%emt 00:00:45]} d4 {[%clk
00:33:54]} {[%emt 00:03:44]} 14. Nf3 {[%clk 00:31:13]} {[%emt 00:02:34]} Nd7
{[%clk 00:31:17]} {[%emt 00:02:47]} 15. Bd2 {[%clk 00:30:08]} {[%emt 00:01:15]}
a4 {[%clk 00:29:10]} {[%emt 00:02:17]} 16. Nh4 {[%clk 00:24:46]} {[%emt
00:05:32]} Rb8 {[%clk 00:25:37]} {[%emt 00:03:42]} 17. Nf5 {[%clk 00:22:37]}
{[%emt 00:02:19]} Nc5 {[%clk 00:22:44]} {[%emt 00:03:03]} 18. Nxd6 {[%clk
00:22:04]} {[%emt 00:00:43]} Qxd6 {[%clk 00:20:41]} {[%emt 00:02:14]} 19. Bb4
{[%clk 00:22:12]} {[%emt 00:00:02]} Re8 {[%clk 00:17:16]} {[%emt 00:03:34]} 20.
Rab1 {[%clk 00:21:13]} {[%emt 00:01:09]} Qe7 {[%clk 00:13:05]} {[%emt
00:04:22]} 21. Qc2 {[%clk 00:21:12]} {[%emt 00:00:11]} Be6 {[%clk 00:09:03]}
{[%emt 00:04:12]} 22. Bxc5 {[%clk 00:20:33]} {[%emt 00:00:50]} Qxc5 {[%clk
00:09:11]} {[%emt 00:00:01]} 23. Qxa4 {[%clk 00:20:41]} {[%emt 00:00:02]} Ra8
{[%clk 00:08:22]} {[%emt 00:00:59]} 24. Qc2 {[%clk 00:20:50]} {[%emt 00:00:01]}
Qe7 {[%clk 00:08:16]} {[%emt 00:00:16]} 25. Qc1 {[%clk 00:16:05]} {[%emt
00:04:55]} Rf8 {[%clk 00:06:28]} {[%emt 00:01:58]} 26. b4 {[%clk 00:15:33]}
{[%emt 00:00:42]} f5 {[%clk 00:06:07]} {[%emt 00:00:32]} 27. Ra1 {[%clk
00:13:32]} {[%emt 00:02:10]} f4 {[%clk 00:04:05]} {[%emt 00:02:11]} 28. f3
{[%clk 00:13:42]} {[%emt 00:00:01]} Qg5 {[%clk 00:03:34]} {[%emt 00:00:42]} 29.
Qd2 {[%clk 00:11:06]} {[%emt 00:02:46]} Bxh3 {[%clk 00:03:05]} {[%emt
00:00:39]} 30. a4 {[%clk 00:11:14]} {[%emt 00:00:01]} Rf6 {[%clk 00:02:17]}
{[%emt 00:00:58]} 31. b5 {[%clk 00:11:10]} {[%emt 00:00:14]} Rh6 {[%clk
00:01:18]} {[%emt 00:01:10]} 32. c5 {[%clk 00:09:23]} {[%emt 00:01:56]} Be6
{[%clk 00:00:58]} {[%emt 00:00:30]} 33. Qf2 {[%clk 00:08:00]} {[%emt 00:01:33]}
Qh5 {[%clk 00:00:41]} {[%emt 00:00:27]} 34. Kf1 {[%clk 00:08:10]} {[%emt
00:00:01]} Rg6 {[%clk 00:00:38]} {[%emt 00:00:13]} 35. Ke2 {[%clk 00:08:08]}
{[%emt 00:00:11]} Rg3 {[%clk 00:00:24]} {[%emt 00:00:24]} 36. b6 {[%clk
00:08:12]} {[%emt 00:00:06]} Qg5 {[%clk 00:00:23]} {[%emt 00:00:11]} 37. Kf1
{[%clk 00:07:23]} {[%emt 00:00:59]} Qe7 {[%clk 00:00:25]} {[%emt 00:00:08]} 38.
Rec1 {[%clk 00:07:27]} {[%emt 00:00:06]} h5 {[%clk 00:00:22]} {[%emt 00:00:13]}
39. a5 {[%clk 00:07:20]} {[%emt 00:00:17]} h4 {[%clk 00:00:26]} {[%emt
00:00:07]} 40. a6 {[%clk 00:07:26]} {[%emt 00:00:03]} h3 {[%clk 00:00:27]}
{[%emt 00:00:09]} 41. b7 {[%clk 00:06:39]} {[%emt 00:00:57]} h2 {[%clk
00:00:13]} {[%emt 00:00:25]} 42. Ke2 {[%clk 00:06:47]} {[%emt 00:00:02]} Rb8
{[%clk 00:00:14]} {[%emt 00:00:07]} 43. a7 {[%clk 00:06:57]} Qg5 {[%clk
00:00:11]} {[%emt 00:00:14]} 44. axb8=Q+ {[%clk 00:07:01]} {[%emt 00:00:07]}
Kh7 {[%clk 00:00:20]} {[%emt 00:00:01]} 45. Rh1 {[%clk 00:07:08]} {[%emt
00:00:03]} Rxg2 {[%clk 00:00:00]} {[%emt 00:00:20]} 1-0